fUST/lending_fUST_20240603
["ID","MTS","AMOUNT","RATE_DAILY","PERIOD"]
[328460986,1717417844193,-500.0,0.00023812,2]
[328460989,1717417844203,-500.0,0.00023812,2]
[328460992,1717417844212,-500.0,0.00023812,2]
[328460995,1717417844221,-500.0,0.00023812,2]
[328460998,1717417844231,-500.0,0.00023812,2]
[328461001,1717417844240,-500.0,0.00023813,2]
[328461004,1717417844249,-500.0,0.00023813,2]
[328461007,1717417844260,-500.0,0.00023813,2]
[328461009,1717417844269,-302.8201523,0.00023813,2]
[328461011,1717417844277,-500.0,0.00023813,2]
[328461013,1717417844287,-500.0,0.00024085,2]
[328461015,1717417844297,-598.85,0.00024085,2]
[328461017,1717417844306,-500.0,0.00024086,2]
[328461019,1717417844315,-517.5,0.00024086,2]
[328461021,1717417844324,-247.61,0.00024086,2]
[328461023,1717417844334,-500.0,0.00024086,2]
[328461025,1717417844343,-500.0,0.00024086,2]
[328461027,1717417844356,-500.0,0.00024086,2]
[328461029,1717417844366,-500.0,0.00024086,2]
[328461032,1717417844375,-500.0,0.00024086,2]
[328461035,1717417844384,-500.0,0.00024086,2]
[328461038,1717417844394,-500.0,0.00024086,2]
[328461041,1717417844403,-500.0,0.00024087,2]
[328461044,1717417844412,-603.35139318,0.00024359,2]
[328461047,1717417844421,-500.0,0.0002436,2]
[328461050,1717417844430,-456.83454681,0.0002436,2]
[328461053,1717417844440,-188.89,0.0002436,2]
[328461056,1717417844449,-500.0,0.0002436,2]
[328461059,1717417844458,-500.0,0.0002436,2]
[328461062,1717417844468,-500.0,0.0002436,2]
[328461065,1717417844477,-500.0,0.0002436,2]
[328461068,1717417844487,-105.6852188,0.00024361,2]
[328461432,1717417848632,-394.3147812,0.00024361,2]
[328461433,1717417848641,-393.29,0.00024634,2]
[328461434,1717417848650,-222.4965923,0.00024634,2]
[328461435,1717417848662,-277.5034077,0.00024634,2]
[328461437,1717417848671,-500.0,0.00024634,2]
[328461439,1717417848681,-500.0,0.00024634,2]
[328461441,1717417848689,-500.0,0.00024634,2]
[328461443,1717417848698,-500.0,0.00024635,2]
[328461446,1717417848707,-162.8080328,0.00024655,2]
[328461449,1717417848716,-423.89973667,0.00024857,2]
[328462040,1717418743120,-212.7243,0.00022181,2]
[328462041,1717418743140,-156.98418007,0.00022182,2]
[328462042,1717418743160,-20138.94496045,0.00022188,2]
[328462043,1717418743180,-8516.3423528,0.00023805,2]
[328462044,1717418743202,-7443.97479281,0.0002381,2]
[328462045,1717418743228,-598.85,0.0002381,2]
[328462046,1717418743249,-500.0,0.0002381,2]
[328462047,1717418743270,-500.0,0.0002381,2]
[328462048,1717418743292,-559.98,0.0002381,2]
[328462049,1717418743312,-500.0,0.0002381,2]
[328462050,1717418743331,-500.0,0.0002381,2]
[328462051,1717418743353,-500.0,0.0002381,2]
[328462052,1717418743375,-500.0,0.0002381,2]
[328462053,1717418743397,-500.0,0.0002381,2]
[328462054,1717418743417,-500.0,0.0002381,2]
[328462055,1717418743437,-500.0,0.0002381,2]
[328462056,1717418743458,-500.0,0.0002381,2]
[328462057,1717418743477,-517.5,0.0002381,2]
[328462058,1717418743496,-624.31,0.0002381,2]
[328462059,1717418743516,-500.0,0.0002381,2]
[328462060,1717418743538,-500.0,0.0002381,2]
[328462061,1717418743557,-500.0,0.0002381,2]
[328462062,1717418743577,-500.0,0.0002381,2]
[328462063,1717418743597,-500.0,0.0002381,2]
[328462064,1717418743618,-500.0,0.0002381,2]
[328462065,1717418743638,-7871.46928076,0.00023811,7]
[328462066,1717418743658,-500.0,0.00023811,2]
[328462067,1717418743677,-500.0,0.00023811,2]
[328462068,1717418743696,-500.0,0.00023811,2]
[328462069,1717418743718,-311.9915699,0.00023811,2]
[328462070,1717418743737,-500.0,0.00023811,2]
[328462071,1717418743757,-500.0,0.00023811,2]
[328462072,1717418743777,-531.21968518,0.00023811,2]
[328462073,1717418743796,-500.0,0.00023811,2]
[328462074,1717418743817,-237.36289791,0.00023811,2]
[328462075,1717418743836,-500.0,0.00023811,2]
[328462076,1717418743856,-500.0,0.00023811,2]
[328462077,1717418743875,-500.0,0.00023811,2]
[328462078,1717418743895,-500.0,0.00023811,2]
[328462079,1717418743915,-500.0,0.00023811,2]
[328462080,1717418743936,-500.0,0.00023811,2]
[328462081,1717418743959,-522.53898558,0.00023811,2]
[328462082,1717418743977,-500.0,0.00023811,2]
[328462083,1717418743996,-500.0,0.00023811,2]
[328462084,1717418744014,-216.83648506,0.00023811,2]
[328462085,1717418744034,-500.0,0.00023811,2]
[328462086,1717418744053,-500.0,0.00023811,2]
[328462087,1717418744071,-293.02415626,0.00023811,2]
[328462088,1717418744091,-500.0,0.00023811,2]
[328462089,1717418744110,-628.29,0.00023811,2]
[328462090,1717418744128,-500.0,0.00023811,2]
[328462091,1717418744288,-500.0,0.00023811,2]
[328462092,1717418744307,-501.92052098,0.00023811,2]
[328462093,1717418744325,-504.03311653,0.00023811,2]
[328462094,1717418744343,-500.0,0.00023812,2]
[328462095,1717418744361,-500.0,0.00023812,2]
[328462096,1717418744383,-500.0,0.00023819,2]
[328462097,1717418744401,-29550.6692599,0.0002382,2]
[328462098,1717418744419,-21274.56193042,0.0002383,2]
[328462099,1717418744438,-492.802708,0.0002383,2]
[328462100,1717418744459,-492.802708,0.0002383,2]
[328462101,1717418744478,-151.0,0.0002383,2]
[328462102,1717418744496,-151.0,0.0002383,2]
[328462103,1717418744515,-151.0,0.0002383,2]
[328462104,1717418744533,-367.615948,0.0002383,2]
[328462105,1717418744552,-367.615948,0.0002383,2]
[328462106,1717418744572,-2437.560889,0.0002383,2]
[328462107,1717418744591,-2437.560889,0.0002383,2]
[328462108,1717418744609,-175.094572,0.0002383,2]
[328462109,1717418744629,-151.0,0.0002383,2]
[328462110,1717418744648,-86.74991739,0.0002383,2]
[328462111,1717418827111,-247.61,0.0002381,2]
[328462112,1717418827134,-500.0,0.0002381,2]
[328462113,1717418827156,-500.0,0.0002381,2]
[328462114,1717418827179,-500.0,0.0002381,2]
[328462115,1717418827200,-500.0,0.0002381,2]
[328462116,1717418827222,-302.8201523,0.00023811,2]
[328462117,1717418827247,-151.0,0.0002383,2]
[328462118,1717418827267,-151.0,0.0002383,2]
[328462119,1717418827290,-1802.362884,0.0002383,2]
[328462120,1717418827314,-1802.362884,0.0002383,2]
[328462121,1717418827336,-1802.362884,0.0002383,2]
[328462122,1717418827357,-1802.362884,0.0002383,2]
[328462123,1717418827376,-151.0,0.0002383,2]
[328462124,1717418827396,-151.0,0.0002383,2]
[328462125,1717418827416,-151.0,0.0002383,2]
[328462126,1717418827437,-151.0,0.0002383,2]
[328462127,1717418827457,-163.847406,0.0002383,2]
[328462128,1717418827477,-151.0,0.0002383,2]
[328462129,1717418827496,-151.710281,0.0002383,2]
[328462130,1717418827516,-336.112496,0.0002383,2]
[328462131,1717418827537,-336.112496,0.0002383,2]
[328462132,1717418827558,-2677.956175,0.0002383,2]
[328462133,1717418827578,-2677.956175,0.0002383,2]
[328462134,1717418827598,-2677.956175,0.0002383,2]
[328462135,1717418827618,-2677.956175,0.0002383,2]
[328462136,1717418827638,-336.112496,0.0002383,2]
[328462137,1717418827659,-336.112496,0.0002383,2]
[328462138,1717418827678,-151.0,0.0002383,2]
[328462139,1717418827698,-151.0,0.0002383,2]
[328462140,1717418827718,-248.348473,0.0002383,2]
[328462141,1717418827739,-548.924686,0.0002383,2]
[328462142,1717418827759,-548.924686,0.0002383,2]
[328462143,1717418827780,-548.924686,0.0002383,2]
[328462144,1717418827800,-548.924686,0.0002383,2]
[328462145,1717418827820,-151.0,0.0002383,2]
[328462146,1717418827841,-151.0,0.0002383,2]
[328462147,1717418827861,-151.0,0.0002383,2]
[328462148,1717418827881,-151.0,0.0002383,2]
[328462149,1717418827901,-151.0,0.0002383,2]
[328462150,1717418827922,-330.854353,0.0002383,2]
[328462151,1717418827941,-330.854353,0.0002383,2]
[328462152,1717418827962,-330.854353,0.0002383,2]
[328462153,1717418827982,-330.854353,0.0002383,2]
[328462154,1717418828002,-151.0,0.0002383,2]
[328462155,1717418828022,-151.0,0.0002383,2]
[328462156,1717418828042,-151.0,0.0002383,2]
[328462157,1717418828064,-198.691375,0.0002383,2]
[328462158,1717418828085,-162.8080328,0.00023983,2]
[328462159,1717418828104,-330.854353,0.00024083,2]
[328462160,1717418828126,-330.854353,0.00024083,2]
[328462161,1717418828146,-151.0,0.00024083,2]
[328462162,1717418828167,-500.0,0.00024084,2]
[328462163,1717418828189,-500.0,0.00024084,2]
[328462164,1717418828210,-500.0,0.00024084,2]
[328462165,1717418828232,-500.0,0.00024084,2]
[328462166,1717418828258,-324.69,0.00024084,2]
[328462167,1717418828281,-500.0,0.00024084,2]
[328462168,1717418828303,-500.0,0.00024084,2]
[328462169,1717418828327,-603.35139318,0.00024084,2]
[328462170,1717418828350,-500.0,0.00024084,2]
[328462171,1717418828370,-416.53,0.00024084,2]
[328462172,1717418828394,-500.0,0.00024085,2]
[328462173,1717418828414,-175.59,0.00024085,2]
[328462174,1717418828434,-424.13,0.00024085,2]
[328462175,1717418828454,-500.0,0.00024085,2]
[328462176,1717418828475,-500.0,0.00024358,2]
[328462177,1717418828495,-585.77,0.00024358,2]
[328462178,1717418828516,-500.0,0.00024358,2]
[328462179,1717418828537,-500.0,0.00024358,2]
[328462180,1717418828558,-500.0,0.00024358,2]
[328462181,1717418828580,-500.0,0.00024358,2]
[328462182,1717418828602,-188.89,0.00024359,2]
[328462183,1717418828622,-500.0,0.00024359,2]
[328462184,1717418828645,-493.45454681,0.00024632,2]
[328462185,1717418828667,-425.56,0.00024632,2]
[328462186,1717418828688,-373.1251,0.00024632,2]
[328462187,1717418828710,-500.0,0.00024632,2]
[328462188,1717418828732,-500.0,0.00024632,2]
[328462189,1717418828752,-164.85842101,0.00024633,2]
[328462190,1717418828772,-151.0,0.00024658,2]
[328462191,1717418828793,-151.0,0.00024658,2]
[328462192,1717418828813,-18500.0,0.00024846,3]
[328462193,1717418828833,-3935.73464038,0.00024847,7]
[328462194,1717418828853,-10727.86600652,0.00024847,3]
[328462195,1717418834121,-500.0,0.00023811,2]
[328462196,1717418834141,-500.0,0.00024085,2]
[328462197,1717418834160,-500.0,0.00024359,2]
[328462198,1717418834181,-172.28512439,0.00024633,2]
[328462199,1717418834201,-15912.14399348,0.00024847,3]
[328462200,1717418834221,-3070.07952213,0.00024847,3]
[328462201,1717418839103,-11358.78341,0.00024847,3]
[328462202,1717418841117,-7771.14706787,0.00024847,3]
[328462203,1717418841137,-15416.67,0.00024848,3]
[328462204,1717418841156,-151.0,0.00024856,2]
[328462205,1717418841175,-252.734104,0.00024856,2]
[328462206,1717418841195,-2437.560889,0.00024856,2]
[328462207,1717418841215,-2437.560889,0.00024856,2]
[328462208,1717418841371,-225.239591,0.00024856,2]
[328462209,1717418841391,-151.0,0.00024856,2]
[328462210,1717418841411,-1802.362884,0.00024856,2]
[328462211,1717418841431,-1802.362884,0.00024856,2]
[328462212,1717418841450,-153.250624,0.00024856,2]
[328462213,1717418841468,-151.0,0.00024856,2]
[328462214,1717418841488,-336.112496,0.00024856,2]
[328462215,1717418841507,-2677.956175,0.00024856,2]
[328462216,1717418841528,-2677.956175,0.00024856,2]
[328462217,1717418841550,-336.112496,0.00024856,2]
[328462218,1717418841569,-156.633037,0.00024856,2]
[328462219,1717418841586,-548.924686,0.00024856,2]
[328462220,1717418841605,-548.924686,0.00024856,2]
[328462221,1717418841624,-151.0,0.00024856,2]
[328462222,1717418841642,-210.48942046,0.00024856,2]
[328462223,1717418841661,-328.42506312,0.00024856,2]
[328462224,1717418841680,-289.81933015,0.00024856,2]
[328462225,1717418841699,-500.0,0.00024856,2]
[328462226,1717418841718,-500.0,0.00024856,2]
[328462227,1717418841737,-500.0,0.00024856,2]
[328462228,1717418841756,-360.77389237,0.00024856,2]
[328462229,1717418841775,-252.55057026,0.00024856,2]
[328462230,1717418841795,-500.0,0.00024856,2]
[328462231,1717418841814,-500.0,0.00024856,2]
[328462232,1717418841832,-500.0,0.00024856,2]
[328462233,1717418841851,-500.0,0.00024856,2]
[328462234,1717418841869,-500.0,0.00024856,2]
[328462235,1717418841886,-500.0,0.00024856,2]
[328462236,1717418841905,-500.0,0.00024856,2]
[328462237,1717418841924,-330.854353,0.00024856,2]
[328462238,1717418841941,-330.854353,0.00024856,2]
[328462239,1717418841959,-151.0,0.00024856,2]
[328462240,1717418841980,-4547.43489967,0.00024857,7]
[328462241,1717418841999,-492.802708,0.00024857,2]
[328462242,1717418842017,-492.802708,0.00024857,2]
[328462243,1717418842036,-151.0,0.00024857,2]
[328462244,1717418842055,-2437.560889,0.00024857,2]
[328462245,1717418842074,-2437.560889,0.00024857,2]
[328462246,1717418842092,-151.0,0.00024857,2]
[328462247,1717418842110,-151.0,0.00024857,2]
[328462248,1717418842129,-1802.362884,0.00024857,2]
[328462249,1717418842148,-1802.362884,0.00024857,2]
[328462250,1717418842168,-1802.362884,0.00024857,2]
[328462251,1717418842188,-1802.362884,0.00024857,2]
[328462252,1717418842207,-151.0,0.00024857,2]
[328462253,1717418842226,-151.0,0.00024857,2]
[328462254,1717418842249,-336.112496,0.00024857,2]
[328462255,1717418842268,-336.112496,0.00024857,2]
[328462256,1717418842290,-2677.956175,0.00024857,2]
[328462257,1717418842309,-2677.956175,0.00024857,2]
[328462258,1717418842329,-2677.956175,0.00024857,2]
[328462259,1717418842348,-2677.956175,0.00024857,2]
[328462260,1717418842368,-336.112496,0.00024857,2]
[328462261,1717418842388,-336.112496,0.00024857,2]
[328462262,1717418842406,-548.924686,0.00024857,2]
[328462263,1717418842425,-548.924686,0.00024857,2]
[328462264,1717418842445,-548.924686,0.00024857,2]
[328462265,1717418842464,-548.924686,0.00024857,2]
[328462266,1717418842483,-151.0,0.00024857,2]
[328462267,1717418842504,-151.0,0.00024857,2]
[328462268,1717418842524,-330.854353,0.00024857,2]
[328462269,1717418842546,-330.854353,0.00024857,2]
[328462270,1717418842566,-330.854353,0.00024857,2]
[328462271,1717418842585,-330.854353,0.00024857,2]
[328462272,1717418842604,-151.0,0.00024857,2]
[328462273,1717418842623,-151.0,0.00024857,2]
[328462274,1717418842642,-20069.06086774,0.00024858,2]
[328462275,1717418842662,-492.802708,0.00024858,2]
[328462276,1717418842681,-492.802708,0.00024858,2]
[328462277,1717418842699,-151.0,0.00024858,2]
[328462278,1717418842719,-2437.560889,0.00024858,2]
[328462279,1717418842738,-2437.560889,0.00024858,2]
[328462280,1717418842756,-151.0,0.00024858,2]
[328462281,1717418842776,-151.0,0.00024858,2]
[328462282,1717418842797,-1802.362884,0.00024858,2]
[328462283,1717418842816,-1802.362884,0.00024858,2]
[328462284,1717418842836,-1802.362884,0.00024858,2]
[328462285,1717418842855,-1802.362884,0.00024858,2]
[328462286,1717418842875,-151.0,0.00024858,2]
[328462287,1717418842895,-151.0,0.00024858,2]
[328462288,1717418842914,-336.112496,0.00024858,2]
[328462289,1717418842933,-336.112496,0.00024858,2]
[328462290,1717418842952,-2677.956175,0.00024858,2]
[328462291,1717418842972,-2677.956175,0.00024858,2]
[328462292,1717418842993,-2677.956175,0.00024858,2]
[328462293,1717418843013,-2677.956175,0.00024858,2]
[328462294,1717418843035,-336.112496,0.00024858,2]
[328462295,1717418843055,-336.112496,0.00024858,2]
[328462296,1717418843074,-548.924686,0.00024858,2]
[328462297,1717418843093,-548.924686,0.00024858,2]
[328462298,1717418843113,-548.924686,0.00024858,2]
[328462299,1717418843134,-548.924686,0.00024858,2]
[328462300,1717418843154,-151.0,0.00024858,2]
[328462301,1717418843175,-272.757014,0.00024858,2]
[328462302,1717418843195,-330.854353,0.00024858,2]
[328462303,1717418843215,-330.854353,0.00024858,2]
[328462304,1717418843237,-330.854353,0.00024858,2]
[328462305,1717418843260,-330.854353,0.00024858,2]
[328462306,1717418843281,-151.0,0.00024858,2]
[328462307,1717418843302,-151.0,0.00024858,2]
[328462308,1717418843324,-151.0,0.00024858,2]
[328462309,1717418843344,-151.0,0.00024858,2]
[328462310,1717418843364,-151.0,0.00024858,2]
[328462311,1717418843383,-151.0,0.00024858,2]
[328462312,1717418843405,-500.0,0.00024906,2]
[328462313,1717418843426,-500.0,0.00024906,2]
[328462314,1717418843446,-620.60267817,0.0002514,2]
[328462315,1717418843467,-531.2,0.0002518,2]
[328462316,1717418843488,-500.0,0.0002518,2]
[328462317,1717418843508,-151.0,0.00025254,7]
[328462318,1717418843530,-500.0,0.00025454,2]
[328462319,1717418843552,-330.854353,0.00025679,2]
[328462320,1717418843572,-330.854353,0.00025679,2]
[328462321,1717418843591,-151.0,0.00025679,2]
[328462322,1717418843611,-500.0,0.00025728,2]
[328462323,1717418843631,-151.0,0.0002584,2]
[328462324,1717418843650,-2677.956175,0.0002584,2]
[328462325,1717418843669,-336.112496,0.0002584,2]
[328462326,1717418843689,-2677.956175,0.0002584,2]
[328462327,1717418843709,-336.112496,0.0002584,2]
[328462328,1717418843729,-151.0,0.0002584,7]
[328462329,1717418843748,-548.924686,0.0002584,2]
[328462330,1717418843767,-548.924686,0.0002584,2]
[328462331,1717418843787,-166.666666,0.00026,2]
[328462332,1717418843807,-2505.3,0.00026,2]
[328462333,1717418843827,-500.0,0.00026002,2]
[328462334,1717418843847,-236.025422,0.00026003,2]
[328462335,1717418843867,-1802.362884,0.00026227,2]
[328462336,1717418843887,-1802.362884,0.00026227,2]
[328462337,1717418843907,-151.0,0.00026227,2]
[328462338,1717418843926,-151.0,0.00026227,2]
[328462339,1717418843946,-500.0,0.00026276,2]
[328462340,1717418843965,-620.03013391,0.00026397,2]
[328462341,1717418843983,-212.7243,0.00026425,2]
[328462342,1717418844004,-151.0,0.00026426,7]
[328462343,1717418844024,-208.280396,0.0002644,2]
[328462344,1717418844044,-168.65094061,0.0002644,2]
[328462345,1717418844064,-151.0,0.0002644,2]
[328462346,1717418844085,-151.0,0.0002644,2]
[328462347,1717418844107,-2437.560889,0.0002644,2]
[328462348,1717418844127,-2437.560889,0.0002644,2]
[328462349,1717418844147,-151.0,0.0002644,2]
[328462350,1717418844167,-2677.956175,0.0002644,2]
[328462351,1717418844187,-336.112496,0.0002644,2]
[328462352,1717418844207,-2677.956175,0.0002644,2]
[328462353,1717418844227,-336.112496,0.0002644,2]
[328462354,1717418844254,-548.924686,0.0002644,2]
[328462355,1717418844274,-548.924686,0.0002644,2]
[328462356,1717418844296,-330.854353,0.0002644,2]
[328462357,1717418844316,-330.85435,0.0002644,2]
[328462358,1717418844334,-151.0,0.0002644,2]
[328462359,1717418844356,-3000.0,0.000265,2]
[328462360,1717418844375,-151.0,0.0002651,2]
[328462361,1717418844395,-3000.0,0.0002651,2]
[328462362,1717418844415,-3586.850103,0.0002652,2]
[328462363,1717418844436,-151.0,0.0002652,2]
[328462364,1717418844457,-151.0,0.0002652,2]
[328462365,1717418844478,-151.0,0.0002655,2]
[328462366,1717418844499,-492.802708,0.0002655,2]
[328462367,1717418844628,-492.802708,0.0002655,2]
[328462368,1717418844650,-1802.362884,0.0002655,2]
[328462369,1717418844670,-1802.362884,0.0002655,2]
[328462370,1717418844691,-151.0,0.0002655,2]
[328462371,1717418844712,-2677.956175,0.0002655,2]
[328462372,1717418844736,-336.112496,0.0002655,2]
[328462373,1717418844756,-2677.956167,0.0002655,2]
[328462374,1717418844776,-336.112495,0.0002655,2]
[328462375,1717418844797,-548.924686,0.0002655,2]
[328462376,1717418844818,-548.924691,0.0002655,2]
[328462377,1717418844840,-522.932083,0.0002655,2]
[328462378,1717418844860,-151.0,0.00026559,2]
[328462379,1717418844880,-151.0,0.00026559,2]
[328462380,1717418844899,-151.0,0.0002657,2]
[328462381,1717418844919,-151.0,0.0002657,2]
[328462382,1717418844939,-492.802708,0.0002657,2]
[328462383,1717418844958,-492.802708,0.0002657,2]
[328462384,1717418844977,-151.0,0.0002657,2]
[328462385,1717418844997,-2437.560889,0.0002657,2]
[328462386,1717418845018,-2437.560889,0.0002657,2]
[328462387,1717418845039,-1802.362884,0.0002657,2]
[328462388,1717418845060,-1802.362881,0.0002657,2]
[328462389,1717418845080,-151.0,0.0002657,2]
[328462390,1717418845100,-151.0,0.0002657,2]
[328462391,1717418845121,-151.0,0.00026579,2]
[328462392,1717418845141,-151.0,0.00026579,2]
[328462393,1717418845161,-151.0,0.00026579,2]
[328462394,1717418845183,-151.0,0.00026579,2]
[328462395,1717418845202,-151.0,0.00026579,2]
[328462396,1717418845223,-151.547111,0.0002658,2]
[328462397,1717418845247,-492.802708,0.0002658,2]
[328462398,1717418845268,-492.802708,0.0002658,2]
[328462399,1717418845291,-151.0,0.0002658,2]
[328462400,1717418845312,-2437.560889,0.0002658,2]
[328462401,1717418845334,-2437.560889,0.0002658,2]
[328462402,1717418845355,-151.0,0.0002659,2]
[328462403,1717418845375,-151.0,0.0002659,2]
[328462404,1717418845397,-151.0,0.000266,2]
[328462405,1717418845418,-151.0,0.000266,2]
[328462406,1717418845439,-151.0,0.000266,2]
[328462407,1717418845459,-151.0,0.000266,2]
[328462408,1717418845480,-492.802708,0.000266,2]
[328462409,1717418845501,-159.34909067,0.000266,2]
[328462410,1717418845571,-333.45361733,0.000266,2]
[328462411,1717418845593,-492.802708,0.000266,2]
[328462412,1717418845614,-492.802708,0.000266,2]
[328462413,1717418845633,-151.0,0.000266,2]
[328462414,1717418845654,-151.0,0.000266,2]
[328462415,1717418845674,-2437.560889,0.000266,2]
[328462416,1717418845695,-2437.560889,0.000266,2]
[328462417,1717418845716,-2437.560889,0.000266,2]
[328462418,1717418845736,-2437.560889,0.000266,2]
[328462419,1717418845757,-677.6,0.000266,3]
[328462420,1717418845778,-677.6,0.000266,3]
[328462421,1717418845800,-677.6,0.000266,3]
[328462422,1717418845822,-677.6,0.000266,3]
[328462423,1717418845845,-677.6,0.000266,3]
[328462424,1717418845866,-677.6,0.000266,3]
[328462425,1717418845887,-677.6,0.000266,3]
[328462426,1717418845909,-677.6,0.000266,3]
[328462427,1717418845929,-677.6,0.000266,3]
[328462428,1717418845949,-677.6,0.000266,3]
[328462429,1717418845970,-677.6,0.000266,3]
[328462430,1717418845990,-677.6,0.000266,3]
[328462431,1717418846010,-677.6,0.000266,3]
[328462432,1717418846030,-677.6,0.000266,3]
[328462433,1717418846053,-677.6,0.000266,3]
[328462434,1717418846073,-677.6,0.000266,3]
[328462435,1717418846094,-677.6,0.000266,3]
[328462436,1717418846114,-677.6,0.000266,3]
[328462437,1717418846134,-677.6,0.000266,3]
[328462438,1717418846155,-677.6,0.000266,3]
[328462439,1717418846176,-151.0,0.000266,2]
[328462440,1717418846198,-151.0,0.000266,2]
[328462441,1717418846220,-151.0,0.00026769,2]
[328462442,1717418846249,-151.0,0.00026769,2]
[328462443,1717418846271,-151.0,0.00026769,2]
[328462444,1717418846296,-151.0,0.00026769,2]
[328462445,1717418846317,-492.802708,0.00026769,2]
[328462446,1717418846342,-492.802708,0.00026769,2]
[328462447,1717418846362,-151.0,0.00026769,2]
[328462448,1717418846383,-2437.560889,0.00026769,2]
[328462449,1717418846404,-2437.560896,0.00026769,2]
[328462450,1717418846427,-151.0,0.00026838,2]
[328462451,1717418846448,-151.0,0.00026838,2]
[328462452,1717418846469,-151.0,0.00026838,2]
[328462453,1717418846489,-151.0,0.00026838,2]
[328462454,1717418846510,-577.815459,0.00026838,2]
[328462455,1717418846531,-492.802708,0.00026838,2]
[328462456,1717418846555,-492.80270393,0.00026838,2]
[328462457,1717418846575,-151.0,0.00026838,2]
[328462458,1717418846596,-215.250082,0.00026838,2]
[328462459,1717418846617,-750.0,0.00026849,2]
[328462460,1717418846637,-153.12327169,0.00026852,2]
[328462461,1717418846657,-3854.04905952,0.0002691,30]
[328462462,1717418846677,-3854.04905952,0.00026915,30]
[328462463,1717418846696,-3854.04905952,0.00026924,30]
[328462464,1717418846716,-3854.04905952,0.00026934,30]
[328462465,1717418846736,-3854.04905952,0.00026953,30]
[328462466,1717418846756,-634.46457136,0.00026966,2]
[328462467,1717418846776,-151.0,0.00026976,2]
[328462468,1717418846797,-3854.04905952,0.00026976,30]
[328462469,1717418846816,-3854.04905952,0.00026995,30]
[328462470,1717418846836,-151.0,0.00027012,7]
[328462471,1717418846856,-634.46457136,0.00027051,2]
[328462472,1717418846875,-634.46457136,0.00027078,2]
[328462473,1717418846895,-150.0,0.00027078,2]
[328462474,1717418846917,-634.46457136,0.00027115,2]
[328462475,1717418846937,-151.0,0.00027138,2]
[328462476,1717418846957,-151.0,0.00027138,2]
[328462477,1717418846977,-160.25575118,0.0002718,2]
[328462478,1717418846998,-212.71800123,0.00027195,2]
[328462479,1717418847018,-292.89644429,0.00027287,2]
[328462480,1717418847041,-292.89644429,0.0002731,2]
[328462481,1717418847060,-634.46457136,0.00027325,2]
[328462482,1717418847080,-292.89644429,0.00027331,2]
[328462483,1717418847101,-151.0,0.00027374,2]
[328462484,1717418847122,-602.41706037,0.00027397,2]
[328462485,1717418847144,-244.13594743,0.00027397,2]
[328462486,1717418847164,-151.0,0.00027397,2]
[328462487,1717418847185,-196.876762,0.00027397,2]
[328462488,1717418847205,-151.0,0.00027397,2]
[328462489,1717418847225,-151.0,0.00027397,2]
[328462490,1717418847249,-151.0,0.00027397,2]
[328462491,1717418847270,-151.0,0.00027397,2]
[328462492,1717418847294,-151.0,0.00027397,2]
[328462493,1717418847313,-151.0,0.00027397,2]
[328462494,1717418847337,-151.0,0.00027397,2]
[328462495,1717418847356,-151.0,0.00027397,2]
[328462496,1717418847376,-151.0,0.00027397,2]
[328462497,1717418847395,-151.0,0.00027397,2]